bitfinex-derivatives/quotes_SOLF0:USTF0_20250808
["timestamp","ask_amount","ask_price","bid_price","bid_amount"]
[1754675561905,0.04296021,178.19,178.15,3.05]
[1754675562109,3.06,178.19,178.09,6.46241082]
[1754675562404,8.70731933,178.19,178.18,3.05]
[1754675562605,5.64731933,178.19,178.18,3.05]
[1754675562816,8.70731933,178.19,178.18,3.05]
[1754675563109,8.672,178.18,178.17,3.05]
[1754675563309,0.03581933,178.19,178.17,3.05]
[1754675563503,5.64751933,178.19,178.18,3.05]
[1754675563701,0.03581933,178.19,178.16,6.46241082]
[1754675563904,8.6718,178.18,178.17,3.05]
[1754675564504,3.06,178.14,178.12,3.05]
[1754675564915,3.06,178.13,178.12,3.05]
[1754675565507,3.09692195,178.15,178.13,3.05]
[1754675565709,3.09692195,178.15,178.12,3.05]
[1754675565909,3.06,178.14,178.12,9.51241082]
[1754675566103,5.6131,178.14,178.13,3.05]
[1754675566913,5.64962195,178.15,178.14,3.05]
[1754675567709,0.03692195,178.15,178.14,9.51241082]
[1754675568419,5.64962195,178.15,178.14,9.51241082]
[1754675569120,0.03692195,178.15,178.14,9.51241082]
[1754675569818,0.03692195,178.15,178.12,3.08555344]
[1754675570011,3.06,178.13,178.12,9.54796426]
[1754675570318,8.6733,178.13,178.12,9.54796426]
[1754675570521,5.6133,178.13,178.12,9.54796426]
[1754675570718,8.6733,178.13,178.12,0.03555344]
[1754675571117,5.6133,178.13,178.12,3.08555344]
[1754675571313,8.6731,178.14,178.12,3.08555344]
[1754675571514,3.06,178.14,178.12,3.08555344]
[1754675572014,8.6733,178.13,178.12,3.08555344]
[1754675572823,8.6733,178.13,178.12,0.03555344]
[1754675573020,8.6733,178.13,178.12,3.08555344]
[1754675573213,5.6133,178.13,178.12,3.08555344]
[1754675573818,8.6733,178.13,178.12,3.08555344]
[1754675574614,8.6733,178.13,178.12,0.03555344]
[1754675575011,5.6133,178.13,178.12,3.08555344]
[1754675575421,5.6131,178.14,178.12,3.08555344]
[1754675575621,5.6131,178.14,178.13,9.51241082]
[1754675575922,8.6731,178.14,178.13,9.51241082]
[1754675576118,8.6731,178.14,178.13,3.05]
[1754675576720,8.6733,178.13,178.12,0.03555344]
[1754675578027,5.6133,178.13,178.12,3.08555344]
[1754675579321,8.6733,178.13,178.12,0.03555344]
[1754675579723,3.06,178.13,178.08,9.51241082]
[1754675579927,3.06,178.13,178.09,3.05]
[1754675580226,5.6143,178.1,178.09,3.05]
[1754675580430,3.06,178.14,178.07,145.77]
[1754675580619,3.06,178.14,178.07,149.74266367]
[1754675580822,5.6149,178.08,178.07,145.77]
[1754675581023,5.6149,178.08,178.07,149.74266367]
[1754675581429,3.06,178.08,178.07,149.74266367]
[1754675581628,3.06,178.1,178.09,3.05]
[1754675581825,3.06,178.1,178.08,3.05]
[1754675582125,5.6146,178.09,178.08,3.05]
[1754675583131,8.6749,178.08,178.07,7.02266367]
[1754675583331,8.6749,178.08,178.07,3.97266367]
[1754675583722,8.6749,178.08,178.02,382.4766]
[1754675583723,3.06,178.06,178.02,3.97266367]
[1754675583926,3.06,178.06,177.99,3.05]
[1754675584222,8.6774,178.0,177.99,3.05]
[1754675584826,3.06,177.99,177.97,3.05]
[1754675585130,3.06,177.99,177.98,3.05]
[1754675585425,3.06,178.1,177.98,3.05]
[1754675585730,11.2219,178.21,178.09,3.05]
[1754675586035,3.06,178.19,178.08,6.48056962]
[1754675586234,5.614,178.11,178.1,6.48056962]
[1754675586433,8.774,178.11,178.1,6.48056962]
[1754675586636,3.16,178.14,178.1,6.48056962]
[1754675586834,8.773,178.14,178.13,6.48056962]
[1754675588141,8.7737,178.12,178.11,3.05]
[1754675588332,8.7737,178.12,178.11,9.53056962]
[1754675589229,3.16,178.12,178.11,9.53056962]
[1754675589938,8.7737,178.12,178.11,9.53056962]
[1754675590127,3.1957782,178.15,178.14,3.05]
[1754675590331,3.1957782,178.15,178.14,6.48056962]
[1754675590533,8.8085782,178.15,178.14,6.48056962]
[1754675591039,8.7733,178.13,178.12,6.48056962]
[1754675591526,5.614,178.11,178.1,6.48056962]
[1754675591833,3.16,178.12,178.11,3.05]
[1754675592235,8.7737,178.12,178.11,3.05]
[1754675593429,8.7734,178.13,178.11,3.05]
[1754675593630,0.0357782,178.15,178.1,6.48056962]
[1754675593631,0.0357782,178.15,178.12,6.48056962]
[1754675593833,3.16,178.13,178.12,6.48056962]
[1754675594434,8.7733,178.13,178.12,9.53056962]
[1754675596039,0.0357782,178.15,178.13,3.05]
[1754675596235,0.0357782,178.15,178.14,9.53056962]
[1754675597032,3.16,178.19,178.14,6.48056962]
[1754675597238,11.2174,178.28,178.18,3.05]
[1754675597437,5.6108,178.21,178.2,9.53056962]
[1754675597747,8.7708,178.21,178.2,9.53056962]
[1754675598243,8.7708,178.21,178.2,6.48056962]
[1754675598836,8.7708,178.21,178.2,9.53056962]
[1754675599145,5.65102797,178.22,178.21,3.05]
[1754675599440,3.16,178.21,178.2,9.53056962]
[1754675599744,8.7708,178.21,178.2,9.53056962]
[1754675600543,8.7708,178.21,178.2,6.48056962]
[1754675600741,5.6108,178.21,178.2,9.53056962]
[1754675601444,377.24,178.32,178.21,3.05]
[1754675601743,3.16,178.25,178.24,6.48056962]
[1754675602539,8.7702,178.23,178.22,9.53056962]
[1754675602743,8.7702,178.23,178.22,6.48056962]
[1754675603437,3.16,178.31,178.23,3.05]
[1754675603641,3.16,178.31,178.25,6.48056962]
[1754675604141,3.16,178.31,178.26,0.03895163]
[1754675605046,5.6089,178.27,178.26,5.163e-05]
[1754675605241,8.7689,178.27,178.26,5.163e-05]
[1754675605640,3.16,178.3,178.21,6.48056962]
[1754675605843,3.16,178.28,178.2,3.05]
[1754675606043,3.16,178.28,178.21,6.48056962]
[1754675606244,5.6105,178.22,178.21,6.48056962]
[1754675606447,5.6105,178.22,178.15,754.8]
[1754675606448,3.16,178.28,178.15,377.14]
[1754675606750,3.16,178.28,178.18,9.53056962]
[1754675607046,0.03621962,178.23,178.2,3.05]
[1754675607347,0.03621962,178.23,178.2,6.48056962]
[1754675607548,8.7705,178.22,178.21,3.05]
[1754675608546,5.6105,178.22,178.21,3.05]
[1754675609648,5.64651962,178.23,178.21,3.05]
[1754675609948,5.64651962,178.23,178.22,9.53056962]
[1754675610445,8.80651962,178.23,178.22,3.05]
[1754675610643,5.64651962,178.23,178.22,3.05]
[1754675610847,0.03621962,178.23,178.22,3.05]
[1754675613352,5.64641962,178.23,178.22,3.05]
[1754675613553,8.80641962,178.23,178.22,3.05]
[1754675613850,8.7705,178.22,178.21,9.53056962]
[1754675614647,8.7705,178.22,178.21,6.48056962]
[1754675614947,0.03621962,178.23,178.19,6.48056962]
[1754675614948,8.7711,178.2,178.19,6.48056962]
[1754675615647,3.16,178.22,178.21,3.05]
[1754675615851,3.19621962,178.23,178.22,3.05]
[1754675616151,5.64641962,178.23,178.22,3.05]
[1754675616750,5.64641962,178.23,178.22,7.01517017]
[1754675616948,8.80641962,178.23,178.22,7.01517017]
[1754675617451,8.80641962,178.23,178.22,3.96517017]
[1754675619052,8.80641962,178.23,178.22,6.96517017]
[1754675619450,5.6108,178.21,178.2,145.62]
[1754675619653,8.7708,178.21,178.2,149.58517017]
[1754675619854,5.6108,178.21,178.2,149.58517017]
[1754675620354,5.6108,178.21,178.2,145.62]
[1754675620656,5.6108,178.21,178.2,149.58517017]
[1754675620847,5.6106,178.22,178.21,3.0]
[1754675622357,8.7706,178.22,178.21,3.0]
[1754675623860,0.03621962,178.23,178.22,3.0]
[1754675624062,3.16,178.29,178.23,3.0]
[1754675624254,5.6083,178.29,178.28,3.96517017]
[1754675624955,8.7683,178.29,178.28,3.96517017]
[1754675626254,5.6086,178.28,178.27,0.0354592]
[1754675626453,8.7686,178.28,178.27,0.0354592]
[1754675630260,8.7686,178.28,178.27,5.92e-05]
[1754675630765,14.3686,178.28,178.27,5.92e-05]
[1754675631561,8.7686,178.28,178.27,5.92e-05]
[1754675631757,5.6086,178.28,178.27,3.0000592]
[1754675631961,8.7686,178.28,178.27,3.0000592]
[1754675632162,8.7686,178.28,178.27,5.92e-05]
[1754675632359,5.6086,178.28,178.27,5.92e-05]
[1754675633663,5.6086,178.28,178.27,3.0000592]
[1754675633863,5.6086,178.28,178.27,5.92e-05]
[1754675635568,8.7686,178.28,178.27,3.0000592]
[1754675636568,5.6086,178.28,178.27,6.96522937]
[1754675637069,8.7686,178.28,178.27,6.96522937]
[1754675637568,8.7686,178.28,178.27,3.0000592]
[1754675638669,8.7686,178.28,178.27,6.96522937]
[1754675639766,5.6086,178.28,178.27,6.96522937]
[1754675640365,8.7686,178.28,178.27,6.96522937]
[1754675641068,8.7689,178.27,178.26,3.96517017]
[1754675641764,0.03733546,178.29,178.11,3.96517017]
[1754675641765,3.16,178.23,178.11,3.96517017]
[1754675641970,3.16,178.23,178.22,3.96517017]
[1754675642268,3.16,178.28,178.22,3.96517017]
[1754675642569,8.7702,178.23,178.22,3.96517017]
[1754675643166,12.58451246,178.28,178.17,5.612]
[1754675643363,12.58451246,178.28,178.16,142.48]
[1754675643364,0.0403684,178.24,178.21,3.96517017]
[1754675643558,0.0403684,178.24,178.21,6.96517017]
[1754675643968,0.0403684,178.24,178.21,3.96517017]
[1754675643969,8.7705,178.22,178.21,3.96517017]
[1754675645463,5.6105,178.22,178.21,6.96517017]
[1754675645964,3.2003684,178.24,178.21,3.96517017]
[1754675646272,0.0403684,178.24,178.23,7.08517017]
[1754675646663,12.58451246,178.31,178.23,7.08517017]
[1754675646870,3.0,178.3,178.29,3.96517017]
[1754675647174,12.58451246,178.33,178.29,3.96517017]
[1754675647365,5.608,178.3,178.29,3.96517017]
[1754675647763,8.608,178.3,178.29,3.96517017]
[1754675648169,5.6083,178.29,178.28,0.03776119]
[1754675648369,8.6083,178.29,178.28,4.00293136]
[1754675651371,8.6083,178.29,178.28,7.12293136]
[1754675651571,5.6083,178.29,178.28,7.12293136]
[1754675652179,8.6083,178.29,178.28,7.12293136]
[1754675653068,8.6083,178.29,178.28,4.00293136]
[1754675654475,5.6096,178.25,178.24,3.12]
[1754675654678,15.58451246,178.3,178.25,3.96517017]
[1754675654879,3.0,178.28,178.22,3.96517017]
[1754675655073,3.96517017,178.3,178.24,3.96517017]
[1754675655074,5.6096,178.25,178.24,3.96517017]
[1754675655274,8.6096,178.25,178.24,3.96517017]
[1754675655678,5.6111,178.2,178.19,3.12]
[1754675655980,8.6111,178.2,178.19,7.08517017]
[1754675656180,8.6111,178.2,178.19,3.96517017]
[1754675656781,5.6114,178.19,178.18,142.42]
[1754675656983,8.6114,178.19,178.18,142.42]
[1754675657682,8.6118,178.18,178.17,3.96517017]
[1754675658079,3.0,178.2,178.18,3.12]
[1754675658481,5.6118,178.18,178.17,3.96517017]
[1754675658684,5.6118,178.18,178.17,7.08517017]
[1754675659186,5.6115,178.19,178.17,7.08517017]
[1754675659388,8.6115,178.19,178.18,3.12]
[1754675660286,5.6118,178.18,178.17,7.08517017]
[1754675660488,8.6118,178.18,178.17,7.08517017]
[1754675660788,8.6116,178.19,178.18,3.12]
[1754675661287,3.0,178.2,178.15,526.64517017]
[1754675661484,8.6124,178.16,178.15,146.38517017]
[1754675661980,12.59412879,178.16,178.15,142.42]
[1754675662681,5.613,178.14,178.13,3.96517017]
[1754675662876,3.03563843,178.17,178.13,7.08517017]
[1754675663083,3.03563843,178.17,178.16,7.08517017]
[1754675663279,8.64803843,178.17,178.16,3.96517017]
[1754675664184,5.6127,178.15,178.14,3.12]
[1754675664386,8.6127,178.15,178.14,7.08517017]
[1754675664692,0.03563843,178.17,178.16,3.12]
[1754675664983,0.03563843,178.17,178.16,7.08517017]
[1754675665991,0.03563843,178.17,178.16,149.50517017]
[1754675667277,0.03563843,178.17,178.16,3.96517017]
[1754675667481,0.03563843,178.17,178.16,7.08517017]
[1754675667688,8.64773843,178.17,178.16,7.08517017]
[1754675667885,8.64773843,178.17,178.16,3.96517017]
[1754675668285,8.64773843,178.17,178.16,7.08517017]
[1754675668490,0.03563843,178.17,178.16,7.08517017]
[1754675669484,8.64773843,178.17,178.16,3.96517017]
[1754675670587,8.64773843,178.17,178.15,142.42]
[1754675670588,8.6124,178.16,178.15,142.42]
[1754675670788,8.6124,178.16,178.15,146.38517017]
[1754675671388,8.6124,178.16,178.15,142.42]
[1754675671792,3.0,178.16,178.14,3.12]
[1754675671986,3.0,178.16,178.15,3.96517017]
[1754675672389,8.6124,178.16,178.15,3.96517017]
[1754675672993,5.6127,178.15,178.14,3.12]
[1754675673187,8.6127,178.15,178.14,7.08517017]
[1754675673684,8.6125,178.16,178.14,9.57817017]
[1754675673890,8.6125,178.16,178.15,3.12]
[1754675674088,3.0,178.16,178.15,3.12]
[1754675674287,0.03563843,178.17,178.14,3.96517017]
[1754675674484,3.0,178.16,178.12,146.34517017]
[1754675674887,3.89422708,178.15,178.14,3.96517017]
[1754675675086,3.89422708,178.15,178.14,7.08517017]
[1754675675989,0.03562023,178.16,178.14,3.96517017]
[1754675676190,2.95,178.19,178.18,3.96517017]
[1754675676384,2.95,178.21,178.18,6.96517017]
[1754675676585,2.95,178.21,178.2,6.96517017]
[1754675676892,2.95,178.23,178.21,3.0]
[1754675677092,2.95,178.22,178.21,3.0]
[1754675677291,12.58451246,178.31,178.21,3.96517017]
[1754675677493,12.58451246,178.31,178.26,3.96517017]
[1754675677494,2.95,178.3,178.26,3.96517017]
[1754675677691,8.5592,178.27,178.26,3.96517017]
[1754675677884,2.95,178.27,178.25,3.96517017]
[1754675678087,2.95,178.27,178.26,0.04143094]
[1754675678494,8.5589,178.27,178.26,0.04143094]
[1754675679291,5.6113,178.2,178.1,3.0]
[1754675679493,5.6,178.27,178.06,11.231]
[1754675679494,2.95,178.26,178.18,3.96517017]
[1754675679692,2.95,178.26,178.18,6.96517017]
[1754675680297,2.95,178.26,178.2,3.96517017]
[1754675680495,8.5608,178.21,178.2,3.96517017]
[1754675680998,8.5615,178.19,178.18,3.96517017]
[1754675681295,0.04078339,178.24,178.18,3.96517017]
[1754675681494,16.54968263,178.28,178.2,3.96517017]
[1754675681793,2.95,178.21,178.2,3.96517017]
[1754675682387,8.5608,178.21,178.2,3.96517017]
[1754675684300,5.6108,178.21,178.2,6.96517017]
[1754675684893,5.65152769,178.22,178.2,3.96517017]
[1754675685094,0.04092769,178.22,178.21,3.0]
[1754675685598,8.5608,178.21,178.2,3.96517017]
[1754675686598,0.04092769,178.22,178.2,3.96517017]
[1754675686599,5.65152769,178.22,178.21,3.0]
[1754675686798,0.04092769,178.22,178.21,3.0]
[1754675687190,2.95,178.25,178.21,8.6108]
[1754675687394,2.95,178.27,178.24,3.96517017]
[1754675687702,2.95,178.27,178.26,3.96517017]
[1754675688001,8.5589,178.27,178.26,3.96517017]
[1754675693612,5.6089,178.27,178.26,6.96517017]
[1754675693902,12.58451246,178.34,178.27,3.0]
[1754675694103,19.49968263,178.33,178.26,3.96517017]
[1754675694412,8.5589,178.27,178.26,3.96517017]
[1754675694698,5.6089,178.27,178.26,6.96517017]
[1754675695095,5.6087,178.28,178.27,3.0]
[1754675695293,2.95,178.31,178.27,3.0]
[1754675695494,2.95,178.33,178.31,3.0]
[1754675695702,8.557,178.33,178.32,3.96517017]
[1754675696898,5.6074,178.32,178.31,0.03744158]
[1754675697097,8.5574,178.32,178.31,0.03744158]
[1754675700411,2.95,178.34,178.24,150.8698]
[1754675700613,0.03569834,178.33,178.26,3.96517017]
[1754675700908,2.95,178.32,178.26,6.96517017]
[1754675701110,0.03569834,178.33,178.26,6.96517017]
[1754675701705,2.95,178.28,178.26,3.96517017]
[1754675701910,8.5586,178.28,178.27,3.0]
[1754675702103,5.6086,178.28,178.27,3.0]
[1754675702301,2.95,178.27,178.2,12.0]
[1754675702501,2.95,178.26,178.24,3.0]
[1754675702706,2.95,178.28,178.26,3.0]
[1754675703107,2.99082165,178.27,178.25,3.96517017]
[1754675703307,2.95,178.26,178.25,3.96517017]
[1754675704018,2.95,178.26,178.23,3.96517017]
[1754675704208,2.95,178.26,178.23,6.96517017]
[1754675704409,5.6099,178.24,178.23,6.96517017]
[1754675704903,2.95,178.25,178.24,3.0]
[1754675704904,8.5597,178.25,178.24,3.0]
[1754675706114,5.6094,178.26,178.24,3.15]
[1754675706314,8.6994,178.26,178.25,7.11517017]
[1754675706704,0.04051761,178.27,178.26,3.15]
[1754675711813,0.04051761,178.27,178.26,8.7592]
[1754675712019,0.04051761,178.27,178.25,3.96517017]
[1754675712020,3.09,178.34,178.27,3.15]
[1754675712319,3.09,178.33,178.32,3.96517017]
[1754675712524,8.6973,178.33,178.32,3.96517017]
[1754675713218,3.09,178.33,178.32,7.11517017]
[1754675714124,3.09,178.37,178.33,3.15]
[1754675714320,3.09,178.37,178.35,3.96517017]
[1754675714527,8.696,178.37,178.36,3.15]
[1754675716627,5.6061,178.36,178.35,4.00476433]
[1754675716826,5.6061,178.36,178.35,7.15476433]
[1754675717420,8.6961,178.36,178.35,4.00476433]
[1754675721827,8.6961,178.36,178.35,9.416e-05]
[1754675722027,3.96517017,178.36,178.2,3.96517017]
[1754675722224,3.09,178.35,178.28,3.96517017]
[1754675722631,8.6983,178.29,178.28,3.96517017]
[1754675723332,3.09,178.35,178.26,145.27]
[1754675723531,3.09,178.35,178.29,3.96517017]
[1754675723928,8.698,178.3,178.28,3.15]
[1754675724125,3.09,178.29,178.28,3.15]
[1754675724329,3.09,178.34,178.27,3.96517017]
[1754675724730,8.6986,178.28,178.27,3.96517017]
[1754675725024,3.09,178.28,178.27,7.11517017]
[1754675725738,5.6081,178.3,178.27,12.72407017]
[1754675725935,0.03830671,178.32,178.3,3.3019]
[1754675726837,0.03830671,178.32,178.3,6.4519]
[1754675727036,0.03830671,178.32,178.31,7.11517017]
[1754675727230,0.00275327,178.32,178.31,7.11517017]
[1754675727633,0.00275327,178.32,178.31,12.72287017]
[1754675729941,0.00275327,178.32,178.31,7.11517017]
[1754675730244,3.09275327,178.32,178.31,3.96517017]
[1754675730437,0.00275327,178.32,178.31,3.96517017]
[1754675730644,3.09275327,178.32,178.31,3.96517017]
[1754675730944,0.00275327,178.32,178.31,3.96517017]
[1754675731137,0.00275327,178.32,178.31,9.57287017]
[1754675731539,0.00275327,178.32,178.3,3.3019]
[1754675731739,0.00275327,178.32,178.31,3.96517017]
[1754675731932,0.00275327,178.32,178.3,3.3019]
[1754675732141,0.00275327,178.32,178.31,149.19517017]
[1754675732333,8.70035327,178.32,178.31,149.19517017]
[1754675732940,5.61035327,178.32,178.31,149.19517017]
[1754675733143,0.00275327,178.32,178.31,149.19517017]
[1754675733345,0.00275327,178.32,178.31,146.04517017]
[1754675734242,0.00275327,178.32,178.31,151.65287017]
[1754675734540,3.09,178.37,178.32,3.15]
[1754675734740,3.09,178.36,178.35,7.11517017]
[1754675734944,8.6963,178.36,178.35,3.96517017]
[1754675735946,5.6064,178.35,178.34,0.04110829]
[1754675736156,8.6364,178.35,178.34,0.04110829]
[1754675736345,5.6064,178.35,178.34,3.15110829]
[1754675737039,5.6062,178.36,178.34,3.15110829]
[1754675737240,3.03,178.38,178.35,7.07517017]
[1754675737446,3.03,178.37,178.36,3.11]
[1754675737844,8.6358,178.37,178.36,3.11]
[1754675738253,3.03,178.37,178.35,3.96517017]
[1754675738438,3.03,178.36,178.34,0.04110829]
[1754675739042,8.6364,178.35,178.34,0.04110829]
[1754675740246,8.6364,178.35,178.34,8.29e-06]
[1754675740743,8.6377,178.31,178.3,3.3019]
[1754675741144,8.6377,178.31,178.3,6.4119]
[1754675741448,3.96517017,178.38,178.31,3.11]
[1754675741449,3.03,178.33,178.31,3.11]
[1754675741654,3.03,178.33,178.32,7.07517017]
[1754675742354,8.637,178.33,178.32,7.07517017]
[1754675742854,5.607,178.33,178.32,7.07517017]
[1754675743057,0.0421647,178.34,178.33,3.11]
[1754675747755,5.6488647,178.34,178.33,3.11]
[1754675748558,0.0421647,178.34,178.33,3.11]
[1754675750261,0.0421647,178.34,178.33,8.717]
[1754675750459,3.03,178.38,178.33,3.11]
[1754675750655,3.03,178.37,178.35,3.96517017]
[1754675750861,8.6358,178.37,178.36,3.11]
[1754675751453,3.03,178.37,178.34,141.96]
[1754675751660,3.03,178.37,178.35,4.00092352]
[1754675751859,3.03,178.4,178.35,4.00092352]
[1754675752064,3.03,178.4,178.36,3.11]
[1754675752564,5.6058,178.37,178.36,3.11]
[1754675752763,8.6358,178.37,178.36,3.11]
[1754675753657,8.6361,178.36,178.35,4.00092352]
[1754675754557,8.6361,178.36,178.35,7.11092352]
[1754675755566,5.6061,178.36,178.35,7.11092352]
[1754675755759,5.6061,178.36,178.35,3.14575335]
[1754675755959,5.6061,178.36,178.35,7.11092352]
[1754675756761,3.03,178.37,178.36,3.11]
[1754675756961,3.03,178.4,178.36,3.11]
[1754675757162,3.03,178.41,178.39,3.11]
[1754675757361,5.6052,178.4,178.39,3.11]
[1754675757557,8.6352,178.4,178.39,7.07517017]
[1754675757764,12.58451246,178.43,178.4,3.11]
[1754675757969,8.6339,178.43,178.42,3.96517017]
[1754675758168,8.6339,178.43,178.42,0.59370815]
[1754675758362,8.6339,178.43,178.42,3.70370815]
[1754675760066,8.6339,178.43,178.42,0.59370815]
[1754675760267,8.6342,178.42,178.41,0.03902437]
[1754675762666,8.6342,178.42,178.41,2.437e-05]
[1754675763274,5.6061,178.36,178.35,148.91517017]
[1754675763471,8.6361,178.36,178.35,3.11]
[1754675763669,3.03,178.36,178.33,7.07517017]
[1754675763876,8.6367,178.34,178.33,7.07517017]
[1754675764373,5.6074,178.32,178.31,148.91517017]
[1754675764580,8.6374,178.32,178.31,3.96517017]
[1754675765076,5.6077,178.31,178.3,3.3019]
[1754675765382,8.6377,178.31,178.3,3.3019]
[1754675765774,8.6377,178.31,178.3,6.4119]
[1754675766277,5.6077,178.31,178.3,6.4119]
[1754675766472,0.03876779,178.32,178.31,3.27]
[1754675766682,3.21,178.36,178.31,3.27]
[1754675766873,5.6064,178.35,178.34,3.96517017]
[1754675767273,3.21,178.38,178.34,145.78517017]
[1754675767473,3.21,178.38,178.35,3.27]
[1754675767679,3.21,178.38,178.37,3.27]
[1754675767876,3.21,178.39,178.38,3.27]
[1754675768082,3.21,178.39,178.38,7.23517017]
[1754675768485,8.8152,178.39,178.38,7.23517017]
[1754675769578,5.6052,178.39,178.38,7.23517017]
[1754675770685,5.6049,178.4,178.38,7.23517017]
[1754675770887,5.6049,178.4,178.39,3.27]
[1754675771579,5.6049,178.4,178.39,7.23517017]
[1754675771780,8.8149,178.4,178.39,7.23517017]
[1754675772383,15.79451246,178.44,178.4,3.27]
[1754675772580,15.79451246,178.44,178.43,3.96517017]
[1754675772779,3.21,178.44,178.43,0.61895424]
[1754675772988,8.8136,178.44,178.43,0.61895424]
[1754675773191,3.21,178.44,178.42,7.27771516]
[1754675773487,3.21,178.43,178.42,7.27771516]
[1754675774292,8.8139,178.43,178.42,7.27771516]
[1754675774491,8.8139,178.43,178.42,0.04254499]
[1754675775995,8.8139,178.43,178.42,4.499e-05]
[1754675776189,21.39841246,178.43,178.42,4.499e-05]
[1754675776390,8.8139,178.43,178.42,4.499e-05]
[1754675778789,8.8139,178.43,178.42,3.27004499]
[1754675779186,0.03715173,178.44,178.42,4.499e-05]
[1754675779391,0.03715173,178.44,178.43,8.8739]
[1754675779596,0.03715173,178.44,178.43,12.83907017]
[1754675779997,3.21,178.48,178.47,3.27]
[1754675780493,12.58451246,178.5,178.47,3.27]
[1754675780494,3.21,178.5,178.47,3.27]
[1754675780686,12.58451246,178.52,178.48,7.23517017]
[1754675780885,3.21,178.51,178.48,3.96517017]
[1754675781090,8.8122,178.49,178.48,3.96517017]
[1754675781292,12.58451246,178.53,178.38,238.96517017]
[1754675781490,5.6038,178.44,178.41,3.27]
[1754675781697,15.79451246,178.49,178.43,3.27]
[1754675781896,3.21,178.49,178.42,147.304]
[1754675782093,5.6032,178.46,178.42,147.304]
[1754675782293,5.6032,178.46,178.44,0.03819978]
[1754675782497,5.6033,178.45,178.44,0.03819978]
[1754675783401,8.8133,178.45,178.44,0.03819978]
[1754675783704,8.8133,178.45,178.44,9.978e-05]
[1754675783995,5.6045,178.41,178.4,3.27]
[1754675784194,3.21,178.45,178.39,3.96517017]
[1754675784598,5.6048,178.4,178.39,7.23517017]
[1754675784903,2.3029,178.4,178.39,7.23517017]
[1754675785599,2.3029,178.4,178.39,3.27]
[1754675785789,5.6052,178.39,178.38,3.96517017]
[1754675785996,3.21,178.39,178.36,383.87517017]
[1754675786196,3.21,178.39,178.36,380.60517017]
[1754675786496,5.6058,178.37,178.36,380.60517017]
[1754675786802,5.6058,178.37,178.36,383.09194569]
[1754675787205,5.6058,178.37,178.36,386.36194569]
[1754675788002,0.03636248,178.41,178.36,383.09194569]
[1754675788297,0.03636248,178.41,178.38,6.45194569]
[1754675788502,3.24636248,178.41,178.39,3.27]
[1754675788898,5.6048,178.4,178.39,3.27]
[1754675789202,0.03636248,178.41,178.39,3.27]
[1754675789402,0.03636248,178.41,178.38,6.45194569]
[1754675790004,5.64086248,178.41,178.4,3.27]
[1754675792305,5.64086248,178.41,178.4,9.72194569]
[1754675792501,0.03636248,178.41,178.4,9.72194569]
[1754675794206,5.64086248,178.41,178.4,9.72194569]
[1754675794705,5.64086248,178.41,178.4,3.27]
[1754675795403,3.24636248,178.41,178.37,6.45194569]
[1754675795709,0.03636248,178.41,178.4,8.8748]
[1754675795906,3.21,178.45,178.41,3.27]
[1754675796107,5.6036,178.44,178.43,9.67194569]
[1754675796900,12.58451246,178.5,178.44,3.22]
[1754675797212,12.58451246,178.5,178.43,6.45194569]
[1754675797213,3.1,178.48,178.47,3.22]
[1754675797403,5.603,178.46,178.45,9.67194569]
[1754675797918,5.6017,178.5,178.47,5.6023]
[1754675798205,5.6017,178.5,178.45,6.45194569]
[1754675798206,81.54789264,178.52,178.49,3.22]
[1754675798511,90.24899264,178.52,178.5,3.22]
[1754675799005,87.14899264,178.52,178.49,6.45194569]
[1754675799201,3.1,178.5,178.21,11.2212]
[1754675799408,3.1,178.5,178.39,6.45194569]
[1754675799608,6.45194569,178.48,178.39,6.45194569]
[1754675800011,7.18435335,178.47,178.38,143.54]
[1754675800210,3.1,178.45,178.38,143.54]